Workbook

Sheet Form
O1: 2
N2: TAX | Q2: Name: Designation: Working Place: Dist: Cell No. GMAIL. | R2: Gummula Mallesham Panchayath Secretary GP.Datnur MPP Gollaplli JAGTIAL 9491561942 mallikvlg@gmail.com
B3: DCB FORM Entry | N3: NONTAX | U3: April | V3: 5
B4: Gramapanchayat | D4: Datnur | E4: mpp | F4: Gollapalli | H4: Dist | N4: MONTHS | O4: 3 | Q4: Jagtial | U4: May | V4: 1
N5: APRIL | U5: June
B6: MONTH & | E6: YEAR | G6: =ISBLANK(F6) -> TRUE | H6: show entred months "0 " means NO DATA | N6: MAY | Q6: 2020-21 | U6: July
E7: MONTH | G7: =ISBLANK(#REF!) -> FALSE | N7: JULY | Q7: particulars | R7: Arrears demand | S7: Current Demand | U7: August
E8: Particulars | N8: SEPTEMBER | Q8: House Tax | R8: 0 | S8: 11849 | U8: September
N9: OCTOBER | R9: 0 | U9: October
C10: HOUSE TAX | E10: ARREARS | G10: =ISBLANK(F10) -> TRUE | I10: =Database!B2 -> April | N10: NOVEMBER | Q10: Library cess | R10: 0 | S10: 948 | U10: November
E11: CURRENT | G11: TRUE | I11: =Database!B3 -> May | N11: DECEMBER | U11: December
C12: Libaray cess | E12: ARREARS | G12: TRUE | I12: =Database!B4 -> June | N12: JANUARY | Q12: Water Tax | R12: 0 | S12: 1185 | U12: January
E13: CURRENT | G13: TRUE | I13: =Database!B5 -> July | N13: FEBRUARY | U13: February
C14: WATER TAX | E14: ARREARS | G14: TRUE | I14: =Database!B6 -> August | N14: MARCH | Q14: Light Tax | R14: 0 | S14: 1185 | U14: March
E15: CURRENT | G15: TRUE | I15: =Database!B7 -> 0 | N15: YEAR | O15: 4 | U15: 2020 | V15: 1
C16: LIGHT TAX | E16: ARREARS | G16: TRUE | I16: =Database!B8 -> 0 | N16: 2020 | Q16: Drainage Tax | R16: 0 | S16: 1185 | U16: 2021
E17: CURRENT | G17: TRUE | I17: =Database!B9 -> 0 | N17: 2021 | U17: 2022
C18: DRAINAGE TAX | E18: ARREARS | G18: TRUE | I18: =Database!B10 -> 0 | N18: 2022 | Q18: Tap Fee | R18: 0 | S18: 22320 | U18: 2023
E19: CURRENT | G19: TRUE | I19: =Database!B11 -> 0 | N19: 2023 | U19: 2024
C20: TAP FEE | E20: ARREARS | G20: TRUE | I20: =Database!B12 -> 0 | N20: 2024 | U20: 2025
E21: CURRENT | G21: TRUE | I21: =Database!B13 -> 0 | N21: 2025 | U21: 2026
C22: ACTIONS | G22: TRUE | N22: 2026 | R22: SELECT MONTH & CLICK DCB FOR MONTH | U22: 2027
C23: TAP Donation | G23: TRUE | N23: 2027 | U23: 2028
C24: PENALITIES | G24: TRUE | N24: 2028 | U24: 2029
A25: 0 | C25: Other | G25: TRUE | U25: 2030
G26: TRUE | N26: 2029
G27: TRUE | N27: 2030 | Q27: IF YOUR SATISFIED TELL OTHERS IF YOUR NOT SATISFIED TELL US
B28: http://www.mallikvlg.yolasite.com/ | F28: 1 | G28: FALSE

Sheet Database
A1: S.no | B1: MONTH | C1: YEAR | D1: HOUSE TAX ARREARS | E1: HOUSE TAX CURRENT | F1: LIBRARYCESS ARREARS | G1: LIBRARYCESS CURRENT | H1: LIGHTING TAX ARREARS | I1: LIGHTING TAX CURRENT | J1: WATER TAX ARREARS | K1: WATER TAX CURRENT | L1: DRAINAGE TAX ARREARS | M1: DRAINAGE TAX CURRENT | N1: TAP FEE ARREARS | O1: TAP FEE current | P1: Actions | Q1: Tap Donation | R1: Others/penalties | S1: Others | T1: SUBMITED BY | U1: SUBMITED ON
A2: 1 | B2: April | C2: 2020 | D2: 0 | E2: 0 | F2: 0 | G2: 0 | H2: 0 | I2: 0 | J2: 0 | K2: 0 | L2: 0 | M2: 0 | N2: 0 | O2: 0 | P2: 0 | Q2: 0 | R2: 0 | S2: 0 | T2: 2020-03-09T16:40:29
A3: 2 | B3: May | C3: 2020 | D3: 0 | E3: 3502 | F3: 0 | G3: 280 | H3: 0 | I3: 350 | J3: 0 | K3: 350 | L3: 0 | M3: 350 | N3: 0 | O3: 1300 | P3: 0 | Q3: 0 | R3: 1000 | S3: 0 | T3: 2020-03-09T16:16:10
A4: 3 | B4: June | C4: 2020 | D4: 0 | E4: 0 | F4: 0 | G4: 0 | H4: 0 | I4: 0 | J4: 0 | K4: 0 | L4: 0 | M4: 0 | N4: 0 | O4: 0 | P4: 0 | Q4: 0 | R4: 0 | S4: 0 | T4: 2020-03-09T16:12:00
A5: 4 | B5: July | C5: 2020 | D5: 0 | E5: 1086 | F5: 0 | G5: 87 | H5: 0 | I5: 109 | J5: 0 | K5: 109 | L5: 0 | M5: 109 | N5: 0 | O5: 0 | P5: 0 | Q5: 0 | R5: 0 | S5: 0 | T5: 2020-03-09T16:21:57
A6: 5 | B6: August | C6: 2020 | D6: 0 | E6: 2460 | F6: 0 | G6: 197 | H6: 0 | I6: 246 | J6: 0 | K6: 246 | L6: 0 | M6: 246 | N6: 0 | O6: 2500 | P6: 0 | Q6: 0 | R6: 0 | S6: 0 | T6: 2020-03-09T16:28:16

Sheet Sheet2 (hidden)
D1: PRIVIOUS | T1: CURRENT | AK1: TAX | AO1: NON TAX
A2: S. No. | B2: MONTH | C2: YEAR | D2: HOUSE TAX ARREARS | E2: HOUSE TAX CURRENT | F2: LIBRARYCESS ARREARS | G2: LIBRARYCESS CURRENT | H2: LIGHTING TAX ARREARS | I2: LIGHTING TAX CURRENT | J2: WATER TAX ARREARS | K2: WATER TAX CURRENT | L2: DRAINAGE TAX ARREARS | M2: DRAINAGE TAX CURRENT | N2: TAP FEE ARREARS | O2: TAP FEE current | P2: Actions | Q2: Tap Donation | R2: Others/penalties | S2: Others | T2: HOUSE TAX ARREARS | U2: HOUSE TAX CURRENT | V2: LIBRARYCESS ARREARS | W2: LIBRARYCESS CURRENT | X2: LIGHTING TAX ARREARS | Y2: LIGHTING TAX CURRENT | Z2: WATER TAX ARREARS | AA2: WATER TAX CURRENT | AB2: DRAINAGE TAX ARREARS | AC2: DRAINAGE TAX CURRENT | AD2: TAP FEE ARREARS | AE2: TAP FEE current | AF2: Actions | AG2: Tap Donation | AH2: Others/penalties | AI2: Others | AK2: CURRENT MONTH | AM2: PREVIOUS MONTH | AO2: CURRENT MONTH | AQ2: PREVIOUS MONTH
B3: 1 | C3: 2 | D3: 3 | E3: 4 | F3: 5 | G3: 6 | H3: 7 | I3: 8 | J3: 9 | K3: 10 | L3: 11 | M3: 12 | N3: 13 | O3: 14 | P3: 15 | Q3: 16 | R3: 17 | S3: 18 | T3: 19 | U3: 20 | V3: 21 | W3: 22 | X3: 23 | Y3: 24 | Z3: 25 | AA3: 26 | AB3: 27 | AC3: 28 | AD3: 29 | AE3: 30 | AF3: 31 | AG3: 32 | AH3: 33 | AI3: 34
A4: 1 | B4: =Database!B2 -> April | C4: =Database!C2 -> 2020 | D4: 0 | E4: 0 | F4: 0 | G4: 0 | H4: 0 | I4: 0 | J4: 0 | K4: 0 | L4: 0 | M4: 0 | N4: 0 | O4: 0 | P4: 0 | Q4: 0 | R4: 0 | S4: 0 | T4: =Database!D2 -> 0 | U4: =Database!E2 -> 0 | V4: =Database!F2 -> 0 | W4: =Database!G2 -> 0 | X4: =Database!H2 -> 0 | Y4: =Database!I2 -> 0 | Z4: =Database!J2 -> 0 | AA4: =Database!K2 -> 0 | AB4: =Database!L2 -> 0 | AC4: =Database!M2 -> 0 | AD4: =Database!N2 -> 0 | AE4: =Database!O2 -> 0 | AF4: =Database!P2 -> 0 | AG4: =Database!Q2 -> 0 | AH4: =Database!R2 -> 0 | AI4: =Database!S2 -> 0 | AK4: =T4+V4+X4+Z4+AB4 -> 0 | AL4: =U4+W4+Y4+AA4+AC4 -> 0 | AM4: =D4+F4+H4+J4+L4 -> 0 | AN4: =E4+G4+I4+K4+M4 -> 0 | AO4: =AD4 -> 0 | AP4: =AE4+AF4+AG4+AH4+AI4 -> 0 | AQ4: =N4 -> 0 | AR4: =O4+P4+Q4+R4+S4 -> 0
A5: 2 | B5: =Database!B3 -> May | C5: =Database!C3 -> 2020 | D5: =T4+D4 -> 0 | E5: =U4+E4 -> 0 | F5: =V4+F4 -> 0 | G5: 0 | H5: 0 | I5: 0 | J5: 0 | K5: 0 | L5: 0 | M5: 0 | N5: 0 | O5: 0 | P5: 0 | Q5: 0 | R5: 0 | S5: 0 | T5: =Database!D3 -> 0 | U5: =Database!E3 -> 3502 | V5: =Database!F3 -> 0 | W5: =Database!G3 -> 280 | X5: =Database!H3 -> 0 | Y5: =Database!I3 -> 350 | Z5: =Database!J3 -> 0 | AA5: =Database!K3 -> 350 | AB5: =Database!L3 -> 0 | AC5: =Database!M3 -> 350 | AD5: =Database!N3 -> 0 | AE5: =Database!O3 -> 1300 | AF5: =Database!P3 -> 0 | AG5: =Database!Q3 -> 0 | AH5: =Database!R3 -> 1000 | AI5: =Database!S3 -> 0 | AK5: =T5+V5+X5+Z5+AB5 -> 0 | AL5: =U5+W5+Y5+AA5+AC5 -> 4832 | AM5: =D5+F5+H5+J5+L5 -> 0 | AN5: =E5+G5+I5+K5+M5 -> 0 | AO5: =AD5 -> 0 | AP5: =AE5+AF5+AG5+AH5+AI5 -> 2300 | AQ5: =N5 -> 0 | AR5: =O5+P5+Q5+R5+S5 -> 0
A6: 3 | B6: =Database!B4 -> June | C6: =Database!C4 -> 2020 | D6: =T5+D5 -> 0 | E6: =U5+E5 -> 3502 | F6: =V5+F5 -> 0 | G6: 280 | H6: 0 | I6: 350 | J6: 0 | K6: 350 | L6: 0 | M6: 350 | N6: 0 | O6: 1300 | P6: 0 | Q6: 0 | R6: 1000 | S6: 0 | T6: =Database!D4 -> 0 | U6: =Database!E4 -> 0 | V6: =Database!F4 -> 0 | W6: =Database!G4 -> 0 | X6: =Database!H4 -> 0 | Y6: =Database!I4 -> 0 | Z6: =Database!J4 -> 0 | AA6: =Database!K4 -> 0 | AB6: =Database!L4 -> 0 | AC6: =Database!M4 -> 0 | AD6: =Database!N4 -> 0 | AE6: =Database!O4 -> 0 | AF6: =Database!P4 -> 0 | AG6: =Database!Q4 -> 0 | AH6: =Database!R4 -> 0 | AI6: =Database!S4 -> 0 | AK6: 0 | AL6: 0 | AM6: 0 | AN6: 4832 | AO6: 0 | AP6: 0 | AQ6: 0 | AR6: 2300
A7: 4 | B7: =Database!B5 -> July | C7: =Database!C5 -> 2020 | D7: =T6+D6 -> 0 | E7: =U6+E6 -> 3502 | F7: 0 | G7: 280 | H7: 0 | I7: 350 | J7: 0 | K7: 350 | L7: 0 | M7: 350 | N7: 0 | O7: 1300 | P7: 0 | Q7: 0 | R7: 1000 | S7: 0 | T7: =Database!D5 -> 0 | U7: =Database!E5 -> 1086 | V7: =Database!F5 -> 0 | W7: =Database!G5 -> 87 | X7: =Database!H5 -> 0 | Y7: =Database!I5 -> 109 | Z7: =Database!J5 -> 0 | AA7: =Database!K5 -> 109 | AB7: =Database!L5 -> 0 | AC7: =Database!M5 -> 109 | AD7: =Database!N5 -> 0 | AE7: =Database!O5 -> 0 | AF7: =Database!P5 -> 0 | AG7: =Database!Q5 -> 0 | AH7: =Database!R5 -> 0 | AI7: =Database!S5 -> 0 | AK7: 0 | AL7: 1500 | AM7: 0 | AN7: 4832 | AO7: 0 | AP7: 0 | AQ7: 0 | AR7: 2300
A8: 5 | B8: =Database!B6 -> August | C8: =Database!C6 -> 2020 | D8: 0 | E8: 4588 | F8: =V7+F7 -> 0 | G8: =W7+G7 -> 367 | H8: =X7+H7 -> 0 | I8: =Y7+I7 -> 459 | J8: =Z7+J7 -> 0 | K8: =AA7+K7 -> 459 | L8: =AB7+L7 -> 0 | M8: =AC7+M7 -> 459 | N8: =AD7+N7 -> 0 | O8: =AE7+O7 -> 1300 | P8: =AF7+P7 -> 0 | Q8: =AG7+Q7 -> 0 | R8: =AH7+R7 -> 1000 | S8: =AI7+S7 -> 0 | T8: =Database!D6 -> 0 | U8: =Database!E6 -> 2460 | V8: =Database!F6 -> 0 | W8: =Database!G6 -> 197 | X8: =Database!H6 -> 0 | Y8: =Database!I6 -> 246 | Z8: =Database!J6 -> 0 | AA8: =Database!K6 -> 246 | AB8: =Database!L6 -> 0 | AC8: =Database!M6 -> 246 | AD8: =Database!N6 -> 0 | AE8: =Database!O6 -> 2500 | AF8: =Database!P6 -> 0 | AG8: =Database!Q6 -> 0 | AH8: =Database!R6 -> 0 | AI8: =Database!S6 -> 0 | AK8: 0 | AL8: 3395 | AM8: 0 | AN8: 6332 | AO8: 0 | AP8: 2500 | AQ8: 0 | AR8: 2300
A9: 6 | B9: =Database!B7 -> 0 | C9: =Database!C7 -> 0 | D9: 0 | E9: 7048 | F9: 0 | G9: 564 | H9: 0 | I9: 705 | J9: 0 | K9: 705 | L9: 0 | M9: 705 | N9: 0 | O9: 3800 | P9: 0 | Q9: 0 | R9: 1000 | S9: 0 | T9: =Database!D7 -> 0 | U9: =Database!E7 -> 0 | V9: =Database!F7 -> 0 | W9: =Database!G7 -> 0 | X9: =Database!H7 -> 0 | Y9: =Database!I7 -> 0 | Z9: =Database!J7 -> 0 | AA9: =Database!K7 -> 0 | AB9: =Database!L7 -> 0 | AC9: =Database!M7 -> 0 | AD9: =Database!N7 -> 0 | AE9: =Database!O7 -> 0 | AF9: =Database!P7 -> 0 | AG9: =Database!Q7 -> 0 | AH9: =Database!R7 -> 0 | AI9: =Database!S7 -> 0 | AK9: 0 | AL9: 0 | AM9: 0 | AN9: 9727 | AO9: 0 | AP9: 0 | AQ9: 0 | AR9: 4800
A10: 7 | B10: =Database!B8 -> 0 | C10: =Database!C8 -> 0 | D10: 0 | E10: 7048 | F10: 0 | G10: 564 | H10: 0 | I10: 705 | J10: 0 | K10: 705 | L10: 0 | M10: 705 | N10: 0 | O10: 3800 | P10: 0 | Q10: 0 | R10: 1000 | S10: 0 | T10: =Database!D8 -> 0 | U10: =Database!E8 -> 0 | V10: =Database!F8 -> 0 | W10: =Database!G8 -> 0 | X10: =Database!H8 -> 0 | Y10: =Database!I8 -> 0 | Z10: =Database!J8 -> 0 | AA10: =Database!K8 -> 0 | AB10: =Database!L8 -> 0 | AC10: =Database!M8 -> 0 | AD10: =Database!N8 -> 0 | AE10: =Database!O8 -> 0 | AF10: =Database!P8 -> 0 | AG10: =Database!Q8 -> 0 | AH10: =Database!R8 -> 0 | AI10: =Database!S8 -> 0 | AK10: 0 | AL10: 0 | AM10: 0 | AN10: 9727 | AO10: 0 | AP10: 0 | AQ10: 0 | AR10: 4800
A11: 8 | B11: =Database!B9 -> 0 | C11: =Database!C9 -> 0 | D11: 0 | E11: 7048 | F11: 0 | G11: =W10+G10 -> 564 | H11: 0 | I11: 705 | J11: 0 | K11: 705 | L11: 0 | M11: 705 | N11: 0 | O11: 3800 | P11: 0 | Q11: 0 | R11: 1000 | S11: 0 | T11: =Database!D9 -> 0 | U11: =Database!E9 -> 0 | V11: =Database!F9 -> 0 | W11: =Database!G9 -> 0 | X11: =Database!H9 -> 0 | Y11: =Database!I9 -> 0 | Z11: =Database!J9 -> 0 | AA11: =Database!K9 -> 0 | AB11: =Database!L9 -> 0 | AC11: =Database!M9 -> 0 | AD11: =Database!N9 -> 0 | AE11: =Database!O9 -> 0 | AF11: =Database!P9 -> 0 | AG11: =Database!Q9 -> 0 | AH11: =Database!R9 -> 0 | AI11: =Database!S9 -> 0 | AK11: 0 | AL11: 0 | AM11: 0 | AN11: 9727 | AO11: 0 | AP11: 0 | AQ11: 0 | AR11: 4800
A12: 9 | B12: =Database!B10 -> 0 | C12: =Database!C10 -> 0 | D12: 0 | E12: 7048 | F12: 0 | G12: 564 | H12: 0 | I12: 705 | J12: 0 | K12: 705 | L12: 0 | M12: 705 | N12: 0 | O12: 3800 | P12: 0 | Q12: 0 | R12: 1000 | S12: 0 | T12: =Database!D10 -> 0 | U12: =Database!E10 -> 0 | V12: =Database!F10 -> 0 | W12: =Database!G10 -> 0 | X12: =Database!H10 -> 0 | Y12: =Database!I10 -> 0 | Z12: =Database!J10 -> 0 | AA12: =Database!K10 -> 0 | AB12: =Database!L10 -> 0 | AC12: =Database!M10 -> 0 | AD12: =Database!N10 -> 0 | AE12: =Database!O10 -> 0 | AF12: =Database!P10 -> 0 | AG12: =Database!Q10 -> 0 | AH12: =Database!R10 -> 0 | AI12: =Database!S10 -> 0 | AK12: 0 | AL12: 0 | AM12: 0 | AN12: 9727 | AO12: 0 | AP12: 0 | AQ12: 0 | AR12: 4800
A13: 10 | B13: =Database!B11 -> 0 | C13: =Database!C11 -> 0 | D13: 0 | E13: 7048 | F13: 0 | G13: 564 | H13: 0 | I13: 705 | J13: 0 | K13: 705 | L13: 0 | M13: 705 | N13: 0 | O13: 3800 | P13: 0 | Q13: 0 | R13: 1000 | S13: 0 | T13: =Database!D11 -> 0 | U13: =Database!E11 -> 0 | V13: =Database!F11 -> 0 | W13: =Database!G11 -> 0 | X13: =Database!H11 -> 0 | Y13: =Database!I11 -> 0 | Z13: =Database!J11 -> 0 | AA13: =Database!K11 -> 0 | AB13: =Database!L11 -> 0 | AC13: =Database!M11 -> 0 | AD13: =Database!N11 -> 0 | AE13: =Database!O11 -> 0 | AF13: =Database!P11 -> 0 | AG13: =Database!Q11 -> 0 | AH13: =Database!R11 -> 0 | AI13: =Database!S11 -> 0 | AK13: 0 | AL13: 0 | AM13: 0 | AN13: 9727 | AO13: 0 | AP13: 0 | AQ13: 0 | AR13: 4800
A14: 11 | B14: =Database!B12 -> 0 | C14: =Database!C12 -> 0 | D14: 0 | E14: 7048 | F14: 0 | G14: 564 | H14: 0 | I14: 705 | J14: 0 | K14: 705 | L14: 0 | M14: 705 | N14: 0 | O14: 3800 | P14: 0 | Q14: 0 | R14: 1000 | S14: 0 | T14: =Database!D12 -> 0 | U14: =Database!E12 -> 0 | V14: =Database!F12 -> 0 | W14: =Database!G12 -> 0 | X14: =Database!H12 -> 0 | Y14: =Database!I12 -> 0 | Z14: =Database!J12 -> 0 | AA14: =Database!K12 -> 0 | AB14: =Database!L12 -> 0 | AC14: =Database!M12 -> 0 | AD14: =Database!N12 -> 0 | AE14: =Database!O12 -> 0 | AF14: =Database!P12 -> 0 | AG14: =Database!Q12 -> 0 | AH14: =Database!R12 -> 0 | AI14: =Database!S12 -> 0 | AK14: 0 | AL14: 0 | AM14: 0 | AN14: 9727 | AO14: 0 | AP14: 0 | AQ14: 0 | AR14: 4800
A15: 12 | B15: =Database!B13 -> 0 | C15: =Database!C13 -> 0 | D15: =T14+D14 -> 0 | E15: 7048 | F15: 0 | G15: 564 | H15: 0 | I15: 705 | J15: 0 | K15: 705 | L15: 0 | M15: 705 | N15: 0 | O15: 3800 | P15: 0 | Q15: 0 | R15: 1000 | S15: 0 | T15: =Database!D13 -> 0 | U15: =Database!E13 -> 0 | V15: =Database!F13 -> 0 | W15: =Database!G13 -> 0 | X15: =Database!H13 -> 0 | Y15: =Database!I13 -> 0 | Z15: =Database!J13 -> 0 | AA15: =Database!K13 -> 0 | AB15: =Database!L13 -> 0 | AC15: =Database!M13 -> 0 | AD15: =Database!N13 -> 0 | AE15: =Database!O13 -> 0 | AF15: =Database!P13 -> 0 | AG15: =Database!Q13 -> 0 | AH15: =Database!R13 -> 0 | AI15: =Database!S13 -> 0 | AK15: 0 | AL15: 0 | AM15: 0 | AN15: 9727 | AO15: 0 | AP15: 0 | AQ15: 0 | AR15: 4800

Sheet DCB
G1: =INDEX(Form!U3:U14,Form!V3) -> August | I1: MONTH DEMAND COLLECTION BALANCE (DCB)
A2: GRAMAPANCHAYAT: | E2: =Form!D4 -> Datnur | H2: Mandal: | I2: =Form!G4 -> 0 | L2: Dist: | M2: =Form!J4 -> 0
A3: S.No. | B3: Taxes | C3: DEMAND | F3: PREVIOUS MONTH COLLECTION | I3: COLLECTION OF DURING THE MONTH | L3: TOTAL COLLECTION | O3: BALANCE | R3: PERCENTAGE % | S3: Remarks
C4: ARREARS | D4: CURRENT | E4: TOTAL | F4: ARREARS | G4: CURRENT | H4: TOTAL | I4: ARREARS | J4: CURRENT | K4: TOTAL | L4: ARREARS | M4: CURRENT | N4: TOTAL | O4: ARREARS | P4: CURRENT | Q4: TOTAL
A5: 1 | B5: 2 | C5: 3 | D5: 4 | E5: 5 | F5: 6 | G5: 7 | H5: 8 | I5: 9 | J5: 10 | K5: 11 | L5: 12 | M5: 13 | N5: 14 | O5: 15 | P5: 16 | Q5: 17 | R5: 18
A6: 1 | B6: House tax | C6: =Form!R8 -> 0 | D6: =Form!S8 -> 11849 | E6: =C6+D6 -> 11849 | F6: =VLOOKUP(G1,Sheet2!B4:AI15,3,0) -> 0 | G6: =VLOOKUP(G1,Sheet2!B4:AI15,4,0) -> 4588 | H6: =F6+G6 -> 4588 | I6: =VLOOKUP(G1,Sheet2!B2:AI14,19,FALSE) -> 0 | J6: =VLOOKUP(G1,Sheet2!B2:AI14,20,FALSE) -> 2460 | K6: =I6+J6 -> 2460 | L6: =F6+I6 -> 0 | M6: =G6+J6 -> 7048 | N6: =L6+M6 -> 7048 | O6: =C6-L6 -> 0 | P6: =D6-M6 -> 4801 | Q6: =O6+P6 -> 4801 | R6: =IFERROR(N6*100/E6,0) -> 59.48181281
A7: 2 | B7: Library tax | C7: =Form!R10 -> 0 | D7: =Form!S10 -> 948 | E7: =C7+D7 -> 948 | F7: =VLOOKUP(G1,Sheet2!B2:AI14,5,FALSE) -> 0 | G7: =VLOOKUP(G1,Sheet2!B2:AI14,6,FALSE) -> 367 | H7: =F7+G7 -> 367 | I7: =VLOOKUP(G1,Sheet2!B2:AI14,21,FALSE) -> 0 | J7: =VLOOKUP(G1,Sheet2!B2:AI14,22,FALSE) -> 197 | K7: =I7+J7 -> 197 | L7: =F7+I7 -> 0 | M7: 564 | N7: =L7+M7 -> 564 | O7: =C7-L7 -> 0 | P7: 384 | Q7: =O7+P7 -> 384 | R7: 59.49367089
A8: 3 | B8: Water Tax | C8: =Form!R12 -> 0 | D8: =Form!S12 -> 1185 | E8: =C8+D8 -> 1185 | F8: =VLOOKUP(G1,Sheet2!B2:AI14,7,FALSE) -> 0 | G8: =VLOOKUP(G1,Sheet2!B2:AI14,8,FALSE) -> 459 | H8: =F8+G8 -> 459 | I8: =VLOOKUP(G1,Sheet2!B2:AI14,23,FALSE) -> 0 | J8: =VLOOKUP(G1,Sheet2!B2:AI14,24,FALSE) -> 246 | K8: =I8+J8 -> 246 | L8: 0 | M8: 705 | N8: =L8+M8 -> 705 | O8: 0 | P8: 480 | Q8: =O8+P8 -> 480 | R8: 59.49367089
A9: 4 | B9: Light tax | C9: =Form!R12 -> 0 | D9: =Form!S12 -> 1185 | E9: =C9+D9 -> 1185 | F9: =VLOOKUP(G1,Sheet2!B2:AI14,9,FALSE) -> 0 | G9: =VLOOKUP(G1,Sheet2!B2:AI14,10,FALSE) -> 459 | H9: =F9+G9 -> 459 | I9: =VLOOKUP(G1,Sheet2!B2:AI14,25,FALSE) -> 0 | J9: =VLOOKUP(G1,Sheet2!B2:AI14,26,FALSE) -> 246 | K9: =I9+J9 -> 246 | L9: 0 | M9: 705 | N9: =L9+M9 -> 705 | O9: 0 | P9: 480 | Q9: =O9+P9 -> 480 | R9: 59.49367089
A10: 5 | B10: Drain tax | C10: =Form!R16 -> 0 | D10: =Form!S16 -> 1185 | E10: =C10+D10 -> 1185 | F10: =VLOOKUP(G1,Sheet2!B2:AI14,11,FALSE) -> 0 | G10: =VLOOKUP(G1,Sheet2!B2:AI14,12,FALSE) -> 459 | H10: =F10+G10 -> 459 | I10: =VLOOKUP(G1,Sheet2!B2:AI14,27,FALSE) -> 0 | J10: =VLOOKUP(G1,Sheet2!B2:AI14,28,FALSE) -> 246 | K10: =I10+J10 -> 246 | L10: 0 | M10: 705 | N10: =L10+M10 -> 705 | O10: 0 | P10: 480 | Q10: =O10+P10 -> 480 | R10: 59.49367089
A12: TOTAL | C12: =C6+C7+C8+C9+C10+C11 -> 0 | D12: =D6+D7+D8+D9+D10+D11 -> 16352 | E12: 16352 | F12: 0 | G12: =G6+G7+G8+G9+G10+G11 -> 6332 | H12: 6332 | I12: 0 | J12: 3395 | K12: 3395 | L12: 0 | M12: 9727 | N12: 9727 | O12: 0 | P12: 6625 | Q12: 6625 | R12: 59.48507828
A14: NON TAXES
A15: 1 | B15: Tap Fee (monthly) | C15: =Form!R18 -> 0 | D15: =Form!S18 -> 22320 | E15: =C15+D15 -> 22320 | F15: =VLOOKUP(G1,Sheet2!B4:AI15,13,0) -> 0 | G15: =VLOOKUP(G1,Sheet2!B2:AI14,14,FALSE) -> 1300 | H15: =F15+G15 -> 1300 | I15: =VLOOKUP(G1,Sheet2!B2:AI14,29,FALSE) -> 0 | J15: =VLOOKUP(G1,Sheet2!B2:AI14,30,FALSE) -> 2500 | K15: =I15+J15 -> 2500 | L15: =F15+I15 -> 0 | M15: =G15+J15 -> 3800 | N15: =L15+M15 -> 3800 | O15: =C15-L15 -> 0 | P15: =D15-M15 -> 18520 | Q15: =O15+P15 -> 18520 | R15: =IFERROR(N15*100/E15,0) -> 17.02508961
A16: 2 | B16: Action fee (wekly markets, shopping complex , ponds, any other) | C16: 0 | D16: =N16 -> 0 | E16: =C16+D16 -> 0 | F16: 0 | G16: =VLOOKUP(G1,Sheet2!B2:AI14,16,FALSE) -> 0 | H16: =F16+G16 -> 0 | J16: =VLOOKUP(G1,Sheet2!B2:AI14,31,FALSE) -> 0 | K16: =I16+J16 -> 0 | L16: =F16+I16 -> 0 | M16: 0 | N16: =L16+M16 -> 0 | O16: =C16-L16 -> 0 | P16: 0 | Q16: =O16+P16 -> 0 | R16: 0
A17: 3 | B17: Tap Donation | C17: 0 | D17: =N17 -> 1000 | E17: =C17+D17 -> 1000 | F17: 0 | G17: =VLOOKUP(G1,Sheet2!B2:AI14,17,FALSE) -> 1000 | H17: =F17+G17 -> 1000 | J17: =VLOOKUP(G1,Sheet2!B2:AI14,32,FALSE) -> 0 | K17: =I17+J17 -> 0 | L17: 0 | M17: 1000 | N17: =L17+M17 -> 1000 | O17: 0 | P17: 0 | Q17: =O17+P17 -> 0 | R17: 100
A18: 4 | B18: Penalties / OTHERS | C18: 0 | D18: =N18 -> 0 | E18: =C18+D18 -> 0 | F18: 0 | G18: =VLOOKUP(G1,Sheet2!B2:AI14,18,FALSE) -> 0 | H18: =F18+G18 -> 0 | J18: =VLOOKUP(G1,Sheet2!B2:AI14,33,FALSE) -> 0 | K18: =I18+J18 -> 0 | L18: 0 | M18: 0 | N18: =L18+M18 -> 0 | O18: 0 | P18: 0 | Q18: =O18+P18 -> 0 | R18: 0
A19: 5 | B19: Other | C19: 0 | D19: =(N19) -> 0 | E19: =C19+D19 -> 0 | F19: 0 | G19: =VLOOKUP(G1,Sheet2!B2:AI14,19,FALSE) -> 0 | H19: =F19+G19 -> 0 | J19: =VLOOKUP(G1,Sheet2!B2:AI14,34,0) -> 0 | K19: =I19+J19 -> 0 | L19: 0 | M19: 0 | N19: =L19+M19 -> 0 | O19: 0 | P19: 0 | Q19: =O19+P19 -> 0 | R19: 0
A20: NON TAXES Total | C20: =SUM(C15:C19) -> 0 | D20: =SUM(D15:D19) -> 23320 | E20: =SUM(E15:E19) -> 23320 | F20: =SUM(F15:F19) -> 0 | G20: =SUM(G15:G19) -> 2300 | H20: 2300 | I20: 0 | J20: 2500 | K20: 2500 | L20: 0 | M20: 4800 | N20: 4800 | O20: 0 | P20: 18520 | Q20: 18520 | R20: 20.58319039
A21: TOTAL (Tax+Non Tax) | C21: =C12+C20 -> 0 | D21: 39672 | E21: 39672 | F21: 0 | G21: 8632 | H21: 8632 | I21: 0 | J21: 5895 | K21: 5895 | L21: 0 | M21: 14527 | N21: 14527 | O21: 0 | P21: 25145 | Q21: 25145 | R21: 36.61776568

Sheet MONTH WISE TAX DETAILS
A1: TAX MONTH WISE DEMAND COLLECTION BALANCE (DCB)
A2: GRAMAPANCHAYAT: | F2: =Form!D4 -> Datnur | I2: Mandal: | J2: =Form!F4 -> Gollapalli | M2: Dist: | N2: =Form!Q4 -> Jagtial
A3: S.No. | B3: MONTHS | C3: YEAR | D3: DEMAND | G3: PREVIOUS MONTH COLLECTION | J3: COLLECTION OF DURING THE MONTH | M3: TOTAL COLLECTION | P3: BALANCE | S3: PERCENTAGE % | T3: Remarks
D4: ARREARS | E4: CURRENT | F4: TOTAL | G4: ARREARS | H4: CURRENT | I4: TOTAL | J4: ARREARS | K4: CURRENT | L4: TOTAL | M4: ARREARS | N4: CURRENT | O4: TOTAL | P4: ARREARS | Q4: CURRENT | R4: TOTAL
A5: 1 | B5: 2 | D5: 3 | E5: 4 | F5: 5 | G5: 6 | H5: 7 | I5: 8 | J5: 9 | K5: 10 | L5: 11 | M5: 12 | N5: 13 | O5: 14 | P5: 15 | Q5: 16 | R5: 17 | S5: 18
A6: 1 | B6: APRIL | C6: 2020 | D6: =Form!R8+Form!R10++Form!R12+Form!R14+Form!R16 -> 0 | E6: =Form!S8+Form!S10+Form!S12+Form!S14+Form!S16 -> 16352 | F6: =D6+E6 -> 16352 | G6: =Sheet2!AM4 -> 0 | H6: =Sheet2!AN4 -> 0 | I6: =H6+G6 -> 0 | J6: =Sheet2!AK4 -> 0 | K6: =Sheet2!AL4 -> 0 | L6: =J6+K6 -> 0 | M6: =J6+G6 -> 0 | N6: =K6+H6 -> 0 | O6: =N6+M6 -> 0 | P6: =D6-M6 -> 0 | Q6: =E6-N6 -> 16352 | R6: =F6-O6 -> 16352 | S6: =O6*100/F6 -> 0
A7: 2 | B7: MAY | C7: 2020 | D7: =D6 -> 0 | E7: =E6 -> 16352 | F7: =F6 -> 16352 | G7: =M6 -> 0 | H7: =N6 -> 0 | I7: =O6 -> 0 | J7: =Sheet2!AK5 -> 0 | K7: =Sheet2!AL5 -> 4832 | L7: =J7+K7 -> 4832 | M7: =J7+G7 -> 0 | N7: =K7+H7 -> 4832 | O7: =N7+M7 -> 4832 | P7: =D7-M7 -> 0 | Q7: =E7-N7 -> 11520 | R7: =F7-O7 -> 11520 | S7: =O7*100/F7 -> 29.54990215
A8: 3 | B8: JUNE | C8: 2020 | D8: =D7 -> 0 | E8: =E7 -> 16352 | F8: =F7 -> 16352 | G8: =M7 -> 0 | H8: =N7 -> 4832 | I8: =O7 -> 4832 | J8: =Sheet2!AK6 -> 0 | K8: =Sheet2!AL6 -> 0 | L8: 0 | M8: 0 | N8: 4832 | O8: 4832 | P8: 0 | Q8: 11520 | R8: 11520 | S8: 29.54990215
A9: 4 | B9: JULY | C9: 2020 | D9: 0 | E9: 16352 | F9: 16352 | G9: 0 | H9: 4832 | I9: 4832 | J9: =Sheet2!AK7 -> 0 | K9: =Sheet2!AL7 -> 1500 | L9: 1500 | M9: 0 | N9: 6332 | O9: 6332 | P9: 0 | Q9: 10020 | R9: 10020 | S9: 38.72309198
A10: 5 | B10: AUGUST | C10: 2020 | D10: 0 | E10: 16352 | F10: 16352 | G10: 0 | H10: 6332 | I10: 6332 | J10: =Sheet2!AK8 -> 0 | K10: =Sheet2!AL8 -> 3395 | L10: 3395 | M10: 0 | N10: 9727 | O10: 9727 | P10: 0 | Q10: 6625 | R10: 6625 | S10: 59.48507828
A11: 6 | B11: SEPTEMBER | C11: 2020 | D11: 0 | E11: 16352 | F11: 16352 | G11: 0 | H11: 9727 | I11: 9727 | J11: =Sheet2!AK9 -> 0 | K11: =Sheet2!AL9 -> 0 | L11: 0 | M11: 0 | N11: 9727 | O11: 9727 | P11: 0 | Q11: 6625 | R11: 6625 | S11: 59.48507828
A12: 7 | B12: OCTOBER | C12: 2020 | D12: 0 | E12: 16352 | F12: 16352 | G12: 0 | H12: 9727 | I12: 9727 | J12: =Sheet2!AK10 -> 0 | K12: =Sheet2!AL10 -> 0 | L12: 0 | M12: 0 | N12: 9727 | O12: 9727 | P12: 0 | Q12: =E12-N12 -> 6625 | R12: 6625 | S12: 59.48507828
A13: 8 | B13: NOVEMBER | C13: 2020 | D13: 0 | E13: 16352 | F13: 16352 | G13: 0 | H13: 9727 | I13: 9727 | J13: =Sheet2!AK11 -> 0 | K13: =Sheet2!AL11 -> 0 | L13: 0 | M13: 0 | N13: 9727 | O13: 9727 | P13: 0 | Q13: 6625 | R13: 6625 | S13: 59.48507828
A14: 9 | B14: DECEMBER | C14: 2020 | D14: 0 | E14: 16352 | F14: 16352 | G14: 0 | H14: 9727 | I14: 9727 | J14: =Sheet2!AK12 -> 0 | K14: =Sheet2!AL12 -> 0 | L14: 0 | M14: 0 | N14: 9727 | O14: 9727 | P14: 0 | Q14: 6625 | R14: 6625 | S14: 59.48507828
A15: 10 | B15: JANUARY | C15: 2020 | D15: 0 | E15: 16352 | F15: 16352 | G15: 0 | H15: 9727 | I15: 9727 | J15: =Sheet2!AK13 -> 0 | K15: =Sheet2!AL13 -> 0 | L15: 0 | M15: 0 | N15: 9727 | O15: 9727 | P15: 0 | Q15: 6625 | R15: 6625 | S15: 59.48507828
A16: 11 | B16: FEBRUARY | C16: 2020 | D16: 0 | E16: 16352 | F16: 16352 | G16: 0 | H16: 9727 | I16: 9727 | J16: =Sheet2!AK14 -> 0 | K16: =Sheet2!AL14 -> 0 | L16: 0 | M16: 0 | N16: 9727 | O16: 9727 | P16: 0 | Q16: 6625 | R16: 6625 | S16: 59.48507828
A17: 12 | B17: MARCH | C17: 2020 | D17: 0 | E17: 16352 | F17: 16352 | G17: 0 | H17: 9727 | I17: 9727 | J17: =Sheet2!AK15 -> 0 | K17: =Sheet2!AL15 -> 0 | L17: 0 | M17: 0 | N17: 9727 | O17: 9727 | P17: 0 | Q17: 6625 | R17: 6625 | S17: 59.48507828

Sheet MONTH WISE NON TAX DETAILS (2)
A1: NON TAX MONTH WISE DEMAND COLLECTION BALANCE (DCB)
A2: GRAMAPANCHAYAT: | F2: =Form!D4 -> Datnur | I2: Mandal: | J2: =Form!F4 -> Gollapalli | M2: Dist: | N2: =Form!Q4 -> Jagtial
A3: S.No. | B3: MONTHS | C3: YEAR | D3: DEMAND | G3: PREVIOUS MONTH COLLECTION | J3: COLLECTION OF DURING THE MONTH | M3: TOTAL COLLECTION | P3: BALANCE | S3: PERCENTAGE % | T3: Remarks
D4: ARREARS | E4: CURRENT | F4: TOTAL | G4: ARREARS | H4: CURRENT | I4: TOTAL | J4: ARREARS | K4: CURRENT | L4: TOTAL | M4: ARREARS | N4: CURRENT | O4: TOTAL | P4: ARREARS | Q4: CURRENT | R4: TOTAL
A5: 1 | B5: 2 | D5: 3 | E5: 4 | F5: 5 | G5: 6 | H5: 7 | I5: 8 | J5: 9 | K5: 10 | L5: 11 | M5: 12 | N5: 13 | O5: 14 | P5: 15 | Q5: 16 | R5: 17 | S5: 18
A6: 1 | B6: APRIL | C6: 2020 | D6: =Form!R18 -> 0 | E6: =Form!S18 -> 22320 | F6: =E6+D6 -> 22320 | G6: =Sheet2!AQ4 -> 0 | H6: =Sheet2!AR4 -> 0 | I6: =H6+G6 -> 0 | J6: =Sheet2!AO4 -> 0 | K6: =Sheet2!AP4 -> 0 | L6: =J6+K6 -> 0 | M6: =J6+G6 -> 0 | N6: =K6+H6 -> 0 | O6: =N6+M6 -> 0 | P6: =D6-M6 -> 0 | Q6: =E6-N6 -> 22320 | R6: =F6-O6 -> 22320 | S6: =O6*100/F6 -> 0
A7: 2 | B7: MAY | C7: 2020 | D7: =D6 -> 0 | E7: =E6 -> 22320 | F7: =F6 -> 22320 | G7: =M6 -> 0 | H7: =N6 -> 0 | I7: =O6 -> 0 | J7: =Sheet2!AO5 -> 0 | K7: =Sheet2!AP5 -> 2300 | L7: =J7+K7 -> 2300 | M7: =J7+G7 -> 0 | N7: =K7+H7 -> 2300 | O7: =N7+M7 -> 2300 | P7: =D7-M7 -> 0 | Q7: =E7-N7 -> 20020 | R7: =F7-O7 -> 20020 | S7: =O7*100/F7 -> 10.3046595
A8: 3 | B8: JUNE | C8: 2020 | D8: =D7 -> 0 | E8: =E7 -> 22320 | F8: =F7 -> 22320 | G8: =M7 -> 0 | H8: =N7 -> 2300 | I8: =O7 -> 2300 | J8: =Sheet2!AO6 -> 0 | K8: =Sheet2!AP6 -> 0 | L8: 0 | M8: 0 | N8: 2300 | O8: 2300 | P8: 0 | Q8: 20020 | R8: 20020 | S8: 10.3046595
A9: 4 | B9: JULY | C9: 2020 | D9: 0 | E9: 22320 | F9: 22320 | G9: 0 | H9: 2300 | I9: 2300 | J9: =Sheet2!AO7 -> 0 | K9: =Sheet2!AP7 -> 0 | L9: 0 | M9: 0 | N9: 2300 | O9: 2300 | P9: 0 | Q9: 20020 | R9: 20020 | S9: 10.3046595
A10: 5 | B10: AUGUST | C10: 2020 | D10: 0 | E10: 22320 | F10: 22320 | G10: 0 | H10: 2300 | I10: 2300 | J10: =Sheet2!AO8 -> 0 | K10: =Sheet2!AP8 -> 2500 | L10: 2500 | M10: 0 | N10: 4800 | O10: 4800 | P10: 0 | Q10: 17520 | R10: 17520 | S10: 21.50537634
A11: 6 | B11: SEPTEMBER | C11: 2020 | D11: 0 | E11: 22320 | F11: 22320 | G11: 0 | H11: 4800 | I11: 4800 | J11: =Sheet2!AO9 -> 0 | K11: =Sheet2!AP9 -> 0 | L11: 0 | M11: 0 | N11: 4800 | O11: 4800 | P11: 0 | Q11: 17520 | R11: 17520 | S11: 21.50537634
A12: 7 | B12: OCTOBER | C12: 2020 | D12: 0 | E12: 22320 | F12: 22320 | G12: 0 | H12: 4800 | I12: 4800 | J12: =Sheet2!AO10 -> 0 | K12: =Sheet2!AP10 -> 0 | L12: 0 | M12: 0 | N12: 4800 | O12: 4800 | P12: 0 | Q12: 17520 | R12: 17520 | S12: 21.50537634
A13: 8 | B13: NOVEMBER | C13: 2020 | D13: 0 | E13: 22320 | F13: 22320 | G13: 0 | H13: 4800 | I13: 4800 | J13: =Sheet2!AO11 -> 0 | K13: =Sheet2!AP11 -> 0 | L13: 0 | M13: 0 | N13: 4800 | O13: 4800 | P13: 0 | Q13: 17520 | R13: 17520 | S13: 21.50537634
A14: 9 | B14: DECEMBER | C14: 2020 | D14: 0 | E14: 22320 | F14: 22320 | G14: 0 | H14: 4800 | I14: 4800 | J14: =Sheet2!AO12 -> 0 | K14: =Sheet2!AP12 -> 0 | L14: 0 | M14: 0 | N14: 4800 | O14: 4800 | P14: 0 | Q14: 17520 | R14: 17520 | S14: 21.50537634
A15: 10 | B15: JANUARY | C15: 2020 | D15: 0 | E15: 22320 | F15: 22320 | G15: 0 | H15: 4800 | I15: 4800 | J15: =Sheet2!AO13 -> 0 | K15: =Sheet2!AP13 -> 0 | L15: 0 | M15: 0 | N15: 4800 | O15: 4800 | P15: 0 | Q15: 17520 | R15: 17520 | S15: 21.50537634
A16: 11 | B16: FEBRUARY | C16: 2020 | D16: 0 | E16: 22320 | F16: 22320 | G16: 0 | H16: 4800 | I16: 4800 | J16: =Sheet2!AO14 -> 0 | K16: =Sheet2!AP14 -> 0 | L16: 0 | M16: 0 | N16: 4800 | O16: 4800 | P16: 0 | Q16: 17520 | R16: 17520 | S16: 21.50537634
A17: 12 | B17: MARCH | C17: 2020 | D17: 0 | E17: 22320 | F17: 22320 | G17: 0 | H17: 4800 | I17: 4800 | J17: =Sheet2!AO15 -> 0 | K17: =Sheet2!AP15 -> 0 | L17: 0 | M17: 0 | N17: 4800 | O17: 4800 | P17: 0 | Q17: 17520 | R17: 17520 | S17: 21.50537634

Sheet mONTH wISE dCB
G1: =DCB!G1 -> August | I1: MONTH DEMAND COLLECTION BALANCE (DCB)
A2: GRAMAPANCHAYAT: | E2: =DCB!E2 -> Datnur | H2: Mandal: | I2: =Form!F4 -> Gollapalli | L2: Dist: | M2: =Form!Q4 -> Jagtial
A3: S.No. | B3: Taxes | C3: DEMAND | F3: PREVIOUS MONTH COLLECTION | I3: COLLECTION OF DURING THE MONTH | L3: TOTAL COLLECTION | O3: BALANCE | R3: PERCENTAGE % | S3: Remarks | U3: APRIL | V3: 1
C4: ARREARS | D4: CURRENT | E4: TOTAL | F4: ARREARS | G4: CURRENT | H4: TOTAL | I4: ARREARS | J4: CURRENT | K4: TOTAL | L4: ARREARS | M4: CURRENT | N4: TOTAL | O4: ARREARS | P4: CURRENT | Q4: TOTAL | U4: MAY
A5: 1 | B5: 2 | C5: 3 | D5: 4 | E5: 5 | F5: 6 | G5: 7 | H5: 8 | I5: 9 | J5: 10 | K5: 11 | L5: 12 | M5: 13 | N5: 14 | O5: 15 | P5: 16 | Q5: 17 | R5: 18 | U5: JUNE
A6: 1 | B6: House tax | C6: =DCB!C6 -> 0 | D6: =DCB!D6 -> 11849 | E6: =DCB!E6 -> 11849 | F6: =DCB!F6 -> 0 | G6: =DCB!G6 -> 4588 | H6: =DCB!H6 -> 4588 | I6: =DCB!I6 -> 0 | J6: =DCB!J6 -> 2460 | K6: =DCB!K6 -> 2460 | L6: =DCB!L6 -> 0 | M6: =DCB!M6 -> 7048 | N6: =DCB!N6 -> 7048 | O6: =DCB!O6 -> 0 | P6: =DCB!P6 -> 4801 | Q6: =DCB!Q6 -> 4801 | R6: =DCB!R6 -> 59.48181281 | U6: JULY
A7: 2 | B7: Library tax | C7: =DCB!C7 -> 0 | D7: =DCB!D7 -> 948 | E7: =DCB!E7 -> 948 | F7: =DCB!F7 -> 0 | G7: =DCB!G7 -> 367 | H7: =DCB!H7 -> 367 | I7: =DCB!I7 -> 0 | J7: =DCB!J7 -> 197 | K7: =DCB!K7 -> 197 | L7: =DCB!L7 -> 0 | M7: =DCB!M7 -> 564 | N7: =DCB!N7 -> 564 | O7: =DCB!O7 -> 0 | P7: =DCB!P7 -> 384 | Q7: =DCB!Q7 -> 384 | R7: =DCB!R7 -> 59.49367089 | U7: AUGUST
A8: 3 | B8: Water Tax | C8: =DCB!C8 -> 0 | D8: =DCB!D8 -> 1185 | E8: =DCB!E8 -> 1185 | F8: =DCB!F8 -> 0 | G8: =DCB!G8 -> 459 | H8: =DCB!H8 -> 459 | I8: =DCB!I8 -> 0 | J8: =DCB!J8 -> 246 | K8: =DCB!K8 -> 246 | L8: =DCB!L8 -> 0 | M8: =DCB!M8 -> 705 | N8: =DCB!N8 -> 705 | O8: =DCB!O8 -> 0 | P8: =DCB!P8 -> 480 | Q8: =DCB!Q8 -> 480 | R8: =DCB!R8 -> 59.49367089 | U8: SEPTEMBER
A9: 4 | B9: Light tax | C9: =DCB!C9 -> 0 | D9: =DCB!D9 -> 1185 | E9: =DCB!E9 -> 1185 | F9: =DCB!F9 -> 0 | G9: =DCB!G9 -> 459 | H9: =DCB!H9 -> 459 | I9: =DCB!I9 -> 0 | J9: =DCB!J9 -> 246 | K9: =DCB!K9 -> 246 | L9: =DCB!L9 -> 0 | M9: =DCB!M9 -> 705 | N9: =DCB!N9 -> 705 | O9: =DCB!O9 -> 0 | P9: =DCB!P9 -> 480 | Q9: =DCB!Q9 -> 480 | R9: =DCB!R9 -> 59.49367089 | U9: OCTOBER
A10: 5 | B10: Drain tax | C10: =DCB!C10 -> 0 | D10: =DCB!D10 -> 1185 | E10: =DCB!E10 -> 1185 | F10: =DCB!F10 -> 0 | G10: =DCB!G10 -> 459 | H10: =DCB!H10 -> 459 | I10: =DCB!I10 -> 0 | J10: =DCB!J10 -> 246 | K10: =DCB!K10 -> 246 | L10: =DCB!L10 -> 0 | M10: =DCB!M10 -> 705 | N10: =DCB!N10 -> 705 | O10: =DCB!O10 -> 0 | P10: =DCB!P10 -> 480 | Q10: =DCB!Q10 -> 480 | R10: =DCB!R10 -> 59.49367089 | U10: NOVEMBER
U11: DECEMBER
A12: TOTAL | C12: =C6+C7+C8+C9+C10+C11 -> 0 | D12: =D6+D7+D8+D9+D10+D11 -> 16352 | E12: 16352 | F12: 0 | G12: =G6+G7+G8+G9+G10+G11 -> 6332 | H12: 6332 | I12: 0 | J12: 3395 | K12: 3395 | L12: 0 | M12: 9727 | N12: 9727 | O12: 0 | P12: 6625 | Q12: 6625 | R12: =IFERROR(N12*100/E12,0) -> 59.48507828
A14: NON TAXES
A15: 1 | B15: Tap Fee (monthly) | C15: =DCB!C15 -> 0 | D15: =DCB!D15 -> 22320 | E15: =DCB!E15 -> 22320 | F15: =DCB!F15 -> 0 | G15: =DCB!G15 -> 1300 | H15: =DCB!H15 -> 1300 | I15: =DCB!I15 -> 0 | J15: =DCB!J15 -> 2500 | K15: =DCB!K15 -> 2500 | L15: =DCB!L15 -> 0 | M15: =DCB!M15 -> 3800 | N15: =DCB!N15 -> 3800 | O15: =DCB!O15 -> 0 | P15: =DCB!P15 -> 18520 | Q15: =DCB!Q15 -> 18520 | R15: =DCB!R15 -> 17.02508961
A16: 2 | B16: Action fee (wekly markets, shopping complex , ponds, any other) | D16: =DCB!D16 -> 0 | E16: =DCB!E16 -> 0 | G16: =DCB!G16 -> 0 | H16: =DCB!H16 -> 0 | J16: =DCB!J16 -> 0 | K16: =DCB!K16 -> 0 | M16: =DCB!M16 -> 0 | N16: =DCB!N16 -> 0 | P16: =DCB!P16 -> 0 | Q16: =DCB!Q16 -> 0 | R16: =DCB!R16 -> 0
A17: 3 | B17: Tap Donation | D17: =DCB!D17 -> 1000 | E17: =DCB!E17 -> 1000 | G17: =DCB!G17 -> 1000 | H17: =DCB!H17 -> 1000 | J17: =DCB!J17 -> 0 | K17: =DCB!K17 -> 0 | M17: =DCB!M17 -> 1000 | N17: =DCB!N17 -> 1000 | P17: =DCB!P17 -> 0 | Q17: =DCB!Q17 -> 0 | R17: =DCB!R17 -> 100
A18: 4 | B18: Penalties / OTHERS | D18: =DCB!D18 -> 0 | E18: =DCB!E18 -> 0 | G18: =DCB!G18 -> 0 | H18: =DCB!H18 -> 0 | J18: =DCB!J18 -> 0 | K18: =DCB!K18 -> 0 | M18: =DCB!M18 -> 0 | N18: =DCB!N18 -> 0 | P18: =DCB!P18 -> 0 | Q18: =DCB!Q18 -> 0 | R18: =DCB!R18 -> 0
A19: 5 | B19: Other | D19: =DCB!D19 -> 0 | E19: =DCB!E19 -> 0 | G19: =DCB!G19 -> 0 | H19: =DCB!H19 -> 0 | J19: =DCB!J19 -> 0 | K19: =DCB!K19 -> 0 | M19: =DCB!M19 -> 0 | N19: =DCB!N19 -> 0 | P19: =DCB!P19 -> 0 | Q19: =DCB!Q19 -> 0 | R19: =DCB!R19 -> 0
A20: NON TAXES Total | C20: =SUM(C15:C19) -> 0 | D20: =SUM(D15:D19) -> 23320 | E20: =SUM(E15:E19) -> 23320 | F20: =SUM(F15:F19) -> 0 | G20: 2300 | H20: 2300 | I20: 0 | J20: =SUM(J15:J19) -> 2500 | K20: 2500 | L20: 0 | M20: 4800 | N20: 4800 | O20: 0 | P20: 18520 | Q20: 18520 | R20: =IFERROR(N20*100/E20,0) -> 20.58319039
A21: TOTAL (Tax+Non Tax) | C21: =C12+C20 -> 0 | D21: 39672 | E21: 39672 | F21: 0 | G21: 8632 | H21: 8632 | I21: 0 | J21: 5895 | K21: 5895 | L21: 0 | M21: 14527 | N21: 14527 | O21: 0 | P21: 25145 | Q21: 25145 | R21: =IFERROR(N21*100/E21,0) -> 36.61776568
